bitfinex/quotes_BTCUSD_20241004
["timestamp","ask_amount","ask_price","bid_price","bid_amount"]
[1728007191145,0.65392416,61367.0,61352.0,0.24468224]
[1728007191146,0.35327216,61353.0,61352.0,0.24468224]
[1728007191860,0.35327216,61353.0,61346.0,0.001638]
[1728007191861,0.163007,61347.0,61346.0,0.001638]
[1728007193651,0.163007,61347.0,61346.0,0.002638]
[1728007193882,0.18856759,61347.0,61346.0,0.002638]
[1728007194578,0.28316759,61347.0,61346.0,0.002638]
[1728007195263,0.18856759,61347.0,61346.0,0.001638]
[1728007195487,0.02556059,61347.0,61346.0,0.001638]
[1728007195707,0.18856759,61347.0,61346.0,0.002638]
[1728007195953,0.18856759,61347.0,61346.0,0.001638]
[1728007196400,0.18856759,61347.0,61346.0,0.002638]
[1728007196629,0.18856759,61347.0,61346.0,0.001638]
[1728007196838,0.163007,61347.0,61346.0,0.002638]
[1728007197289,0.163007,61347.0,61346.0,0.001638]
[1728007197767,0.488976,61353.0,61346.0,0.001638]
[1728007198059,0.39720853,61376.0,61346.0,0.001638]
[1728007198060,0.1,61358.0,61346.0,0.19191916]
[1728007198321,0.162996,61351.0,61346.0,0.164646]
[1728007198572,0.162999,61350.0,61346.0,0.165646]
[1728007198767,0.163004,61349.0,61346.0,0.001638]
[1728007199198,0.162997,61351.0,61346.0,0.001638]
[1728007199415,0.32597,61356.0,61346.0,0.327656]
[1728007199633,0.162989,61354.0,61349.0,0.163001]
[1728007199871,0.325951,61359.0,61346.0,0.002638]
[1728007199872,0.325951,61359.0,61350.0,0.162998]
[1728007200085,0.162988,61355.0,61350.0,0.162998]
[1728007200296,0.497932,61363.0,61354.0,0.00013]
[1728007200297,0.162978,61358.0,61354.0,0.00013]
[1728007200563,0.1009455,61358.0,61354.0,0.00013]
[1728007200783,0.162984,61356.0,61354.0,0.00013]
[1728007201008,0.325962,61357.0,61353.0,0.00013]
[1728007201261,0.325944,61361.0,61348.0,0.326005]
[1728007201262,0.0946,61370.0,61354.0,0.00013]
[1728007201502,0.0946,61370.0,61357.0,0.162978]
[1728007201503,0.162968,61362.0,61357.0,0.162978]
[1728007201717,0.325915,61366.0,61356.0,0.32922434]
[1728007201933,0.005,61359.0,61358.0,0.162977]
[1728007202376,0.000819,61367.0,61356.0,0.325965]
[1728007202610,0.000819,61367.0,61358.0,0.162976]
[1728007202611,0.16296,61365.0,61358.0,0.162976]
[1728007202844,0.002,61362.0,61360.0,0.16297]
[1728007203280,0.16296,61365.0,61360.0,0.16297]
[1728007203941,0.16296,61365.0,61356.0,0.325965]
[1728007203942,0.005819,61367.0,61361.0,0.325938]
[1728007204183,0.005819,61367.0,61360.0,0.41718224]
[1728007204433,0.005819,61367.0,61366.0,0.162956]
[1728007205152,0.000819,61367.0,61366.0,0.162956]
[1728007205408,0.000819,61367.0,61358.0,0.001768]
[1728007205645,0.35325616,61359.0,61358.0,0.001638]
[1728007206371,0.37625616,61359.0,61358.0,0.001638]
[1728007206599,0.54825616,61359.0,61358.0,0.001638]
[1728007207736,0.55012616,61359.0,61358.0,0.001638]
[1728007208203,0.163007,61347.0,61344.0,0.24468224]
[1728007209109,0.163007,61347.0,61337.0,0.24468224]
[1728007210024,0.38506657,61347.0,61337.0,0.24468224]
[1728007210224,0.39206657,61347.0,61337.0,0.24468224]
[1728007210932,0.39206657,61347.0,61329.0,0.001638]
[1728007210933,0.49206657,61347.0,61329.0,0.001638]
[1728007211149,0.35333316,61330.0,61329.0,0.001638]
[1728007212357,0.35533316,61330.0,61329.0,0.001638]
[1728007212825,0.35333316,61330.0,61329.0,0.001638]
[1728007213063,0.37833316,61330.0,61329.0,0.001638]
[1728007213294,0.38020316,61330.0,61329.0,0.001638]
[1728007213552,0.38533316,61330.0,61329.0,0.002638]
[1728007214643,0.19762111,61330.0,61329.0,0.002638]
[1728007215578,0.19762111,61330.0,61329.0,0.002768]
[1728007215799,0.03456911,61330.0,61329.0,0.002638]
[1728007216058,0.02756911,61330.0,61329.0,0.001638]
[1728007216286,0.03156911,61330.0,61329.0,0.001638]
[1728007216514,0.03156911,61330.0,61329.0,0.001768]
[1728007216735,0.03656911,61330.0,61329.0,0.001768]
[1728007216974,0.011,61330.0,61329.0,0.001768]
[1728007217232,0.005,61330.0,61329.0,0.164822]
[1728007218143,0.24468224,61342.0,61337.0,0.00013]
[1728007218378,0.24468224,61342.0,61341.0,0.163023]
[1728007218590,0.24468224,61342.0,61338.0,0.326059]
[1728007218591,0.40768424,61349.0,61344.0,0.163012]
[1728007218809,0.24468224,61349.0,61347.0,0.00013]
[1728007219054,0.163019,61343.0,61341.0,0.00013]
[1728007219277,0.163019,61343.0,61332.0,0.19028116]
[1728007219278,0.163024,61341.0,61339.0,0.00013]
[1728007219740,0.163025,61340.0,61339.0,0.00013]
[1728007220619,0.163036,61336.0,61335.0,0.00013]
[1728007220842,0.163039,61335.0,61334.0,0.00013]
[1728007221127,0.163041,61334.0,61333.0,0.00013]
[1728007221350,0.15896466,61334.0,61333.0,0.00013]
[1728007221584,0.15896466,61334.0,61332.0,0.00013]
[1728007221796,0.32606,61339.0,61332.0,0.00013]
[1728007221797,0.326064,61338.0,61332.0,0.00013]
[1728007222006,0.163037,61336.0,61332.0,0.00013]
[1728007222216,0.163037,61336.0,61335.0,0.00013]
[1728007222430,0.163037,61336.0,61329.0,0.24632024]
[1728007222431,0.326078,61335.0,61330.0,0.00013]
[1728007222644,0.24468224,61337.0,61329.0,0.001768]
[1728007222645,0.163052,61330.0,61329.0,0.001768]
[1728007223313,0.18861683,61330.0,61329.0,0.001768]
[1728007223951,0.18961683,61330.0,61329.0,0.012768]
[1728007224180,0.02656483,61330.0,61329.0,0.012768]
[1728007224608,0.18961683,61330.0,61329.0,0.012768]
[1728007225082,0.18961683,61330.0,61329.0,0.012638]
[1728007225741,0.18961683,61330.0,61329.0,0.024638]
[1728007225957,0.02556483,61330.0,61329.0,0.001638]
[1728007226196,0.18961683,61330.0,61329.0,0.024638]
[1728007231009,0.02656483,61330.0,61329.0,0.187692]
[1728007231249,0.001,61330.0,61329.0,0.27313974]
[1728007231699,0.001,61330.0,61329.0,0.270522]
[1728007233545,0.001,61330.0,61329.0,0.2737824]
[1728007234992,0.001,61330.0,61329.0,0.270522]
[1728007236469,0.001,61330.0,61329.0,0.43896915]
[1728007236699,0.001,61330.0,61329.0,0.43570871]
[1728007236914,0.001,61330.0,61329.0,0.53370871]
[1728007237132,0.24468224,61342.0,61341.0,0.238723]
[1728007237376,0.24468224,61342.0,61341.0,0.42900416]
[1728007237617,0.325948,61360.0,61345.0,0.163012]
[1728007237826,0.325948,61360.0,61345.0,0.35329316]
[1728007238060,0.40766724,61356.0,61345.0,0.35329316]
[1728007238279,0.24468224,61356.0,61345.0,0.00013]
[1728007238514,0.163005,61348.0,61345.0,0.00013]
[1728007238956,0.325995,61351.0,61345.0,0.00013]
[1728007238957,0.163,61350.0,61345.0,0.163142]
[1728007239192,0.163001,61349.0,61345.0,0.163142]
[1728007239425,0.325995,61351.0,61345.0,0.163142]
[1728007239651,0.325995,61351.0,61345.0,0.168142]
[1728007239863,0.325995,61351.0,61345.0,0.174142]
[1728007240084,0.162998,61351.0,61345.0,0.174142]
[1728007241232,0.325981,61354.0,61345.0,0.174142]
[1728007241233,0.162989,61354.0,61345.0,0.36442316]
[1728007241442,0.24468224,61356.0,61345.0,0.36442316]
[1728007241679,0.162988,61355.0,61345.0,0.36442316]
[1728007241907,0.32598,61354.0,61345.0,0.36442316]
[1728007242136,0.24468224,61356.0,61345.0,0.36442316]
[1728007242370,0.40766724,61356.0,61345.0,0.36442316]
[1728007242585,0.24468224,61356.0,61345.0,0.36442316]
[1728007242802,0.162986,61355.0,61345.0,0.36442316]
[1728007244375,0.24468224,61356.0,61345.0,0.36442316]
[1728007244599,0.162989,61354.0,61345.0,0.36442316]
[1728007245495,0.162989,61354.0,61345.0,0.35342316]
[1728007245727,0.162989,61354.0,61345.0,0.35842316]
[1728007245960,0.24468224,61356.0,61345.0,0.36442316]
[1728007246191,0.24468224,61356.0,61345.0,0.35342316]
[1728007246192,0.02555665,61347.0,61345.0,0.35342316]
[1728007246404,0.162989,61354.0,61345.0,0.36242316]
[1728007246630,0.162992,61353.0,61345.0,0.37042316]
[1728007246897,0.163002,61349.0,61345.0,0.01713]
[1728007247142,0.163828,61346.0,61345.0,0.017]
[1728007247593,0.000819,61346.0,61345.0,0.017]
[1728007247807,0.000819,61346.0,61345.0,0.180012]
[1728007248054,0.000819,61346.0,61345.0,0.453912]
[1728007248300,0.000819,61346.0,61345.0,0.61709871]
[1728007248792,0.000819,61346.0,61345.0,0.60909871]
[1728007249025,0.000819,61346.0,61345.0,0.60922871]
[1728007249274,0.000819,61346.0,61345.0,0.60435694]
[1728007249542,0.000819,61346.0,61345.0,0.61635694]
[1728007249758,0.000819,61346.0,61345.0,0.63235694]
[1728007250004,0.000819,61346.0,61345.0,0.60635694]
[1728007250897,0.000819,61346.0,61345.0,0.60435694]
[1728007251135,0.000819,61346.0,61345.0,0.61835694]
[1728007251595,0.000819,61346.0,61345.0,0.60435694]
[1728007251805,0.000819,61346.0,61345.0,0.63235694]
[1728007252284,0.000819,61346.0,61345.0,0.61835694]
[1728007252722,0.000819,61346.0,61345.0,0.63235694]
[1728007254264,0.000819,61346.0,61345.0,0.62035694]
[1728007254469,0.000819,61346.0,61345.0,0.60635694]
[1728007254894,0.000819,61346.0,61345.0,0.63435694]
[1728007255747,0.000819,61346.0,61345.0,0.63235694]
[1728007257718,0.000819,61346.0,61345.0,0.63435694]
[1728007259740,0.000819,61346.0,61345.0,0.63235694]
[1728007259983,0.000819,61346.0,61345.0,0.63435694]
[1728007260420,0.000819,61346.0,61345.0,0.63235694]
[1728007260646,0.000819,61346.0,61345.0,0.46742316]
[1728007260852,0.000819,61346.0,61345.0,0.48142316]
[1728007261313,0.000819,61346.0,61345.0,0.46742316]
[1728007261529,0.163828,61346.0,61345.0,0.01413]
[1728007261750,0.163828,61346.0,61345.0,0.02713]
[1728007262188,0.163828,61346.0,61345.0,0.00013]
[1728007263092,0.163828,61346.0,61345.0,0.01413]
[1728007263573,0.000819,61346.0,61345.0,0.00013]
[1728007264016,0.163023,61341.0,61340.0,0.00013]
[1728007264225,0.000819,61346.0,61345.0,0.005]
[1728007264226,0.16383,61346.0,61345.0,0.005]
[1728007264441,0.000819,61346.0,61345.0,0.19528116]
[1728007264684,0.000819,61346.0,61345.0,0.35829316]
[1728007264940,0.000819,61346.0,61345.0,0.35729316]
[1728007265373,0.000819,61346.0,61345.0,0.35329316]
[1728007265790,0.000819,61346.0,61345.0,0.35829316]
[1728007266033,0.000819,61346.0,61345.0,0.35842316]
[1728007267161,0.000819,61346.0,61345.0,0.35342316]
[1728007267385,0.000819,61346.0,61345.0,0.168142]
[1728007267647,0.000819,61346.0,61345.0,0.01113]
[1728007267870,0.000819,61346.0,61345.0,0.00613]
[1728007268096,0.000819,61346.0,61345.0,0.00013]
[1728007268329,0.000819,61346.0,61345.0,0.019]
[1728007268330,0.163828,61346.0,61345.0,0.019]
[1728007268559,0.2621718,61346.0,61345.0,0.019]
[1728007268774,0.2621718,61346.0,61345.0,0.01]
[1728007268775,0.163828,61346.0,61345.0,0.01]
[1728007269026,0.163828,61346.0,61337.0,0.24481224]
[1728007269027,0.163027,61340.0,61337.0,0.24481224]
[1728007269724,0.1676,61341.0,61335.0,0.00013]
[1728007269970,0.326053,61340.0,61336.0,0.00013]
[1728007270235,0.163031,61338.0,61336.0,0.00013]
[1728007270943,0.35161511,61340.0,61336.0,0.00013]
[1728007270944,0.163033,61337.0,61336.0,0.00013]
[1728007271179,0.163041,61334.0,61333.0,0.00013]
[1728007272378,0.163032,61338.0,61333.0,0.00013]
[1728007272590,0.1676,61341.0,61333.0,0.01713]
[1728007272864,0.163035,61337.0,61333.0,0.01713]
[1728007273342,0.1676,61341.0,61335.0,0.00013]
[1728007273562,0.326052,61340.0,61335.0,0.00013]
[1728007273777,0.163032,61338.0,61335.0,0.00013]
[1728007274437,0.1676,61341.0,61335.0,0.00013]
[1728007274649,0.02556281,61338.0,61336.0,0.163035]
[1728007275597,0.02556281,61338.0,61335.0,0.00113]
[1728007275810,0.02556281,61338.0,61336.0,0.168035]
[1728007276422,0.02556281,61338.0,61336.0,0.005]
[1728007276891,0.163028,61339.0,61336.0,0.005]
[1728007277103,0.163028,61339.0,61335.0,0.163168]
[1728007277315,0.163028,61339.0,61336.0,0.004]
[1728007277556,0.1676,61341.0,61336.0,0.004]
[1728007277789,0.163033,61337.0,61336.0,0.004]
[1728007278082,0.1676,61341.0,61335.0,0.005]
[1728007278295,0.1676,61341.0,61337.0,0.163032]
[1728007278503,0.163026,61340.0,61336.0,0.003]
[1728007278732,0.163026,61340.0,61336.0,0.163035]
[1728007278934,0.163026,61340.0,61336.0,0.168035]
[1728007279145,0.163026,61340.0,61336.0,0.011]
[1728007279624,0.1676,61341.0,61338.0,0.163031]
[1728007279848,0.078319,61346.0,61339.0,0.4349634]
[1728007280035,0.078319,61346.0,61336.0,0.011]
[1728007280036,0.000819,61346.0,61344.0,0.19028116]
[1728007280473,0.02637913,61346.0,61345.0,0.163012]
[1728007280952,0.02637913,61346.0,61345.0,0.16571739]
[1728007281397,0.000819,61346.0,61345.0,0.16571739]
[1728007281864,0.000819,61346.0,61345.0,0.16971739]
[1728007282076,0.000819,61346.0,61345.0,0.174012]
[1728007283179,0.000819,61346.0,61345.0,0.011]
[1728007283414,0.489851,61346.0,61345.0,0.012]
[1728007283871,0.163018,61343.0,61340.0,0.24468224]
[1728007284103,0.326842,61346.0,61340.0,0.24468224]
[1728007284104,0.163015,61344.0,61340.0,0.24468224]
[1728007284320,0.163015,61344.0,61339.0,0.163026]
[1728007284532,0.02555936,61343.0,61338.0,0.163028]
[1728007284743,0.02555936,61343.0,61335.0,0.19028116]
[1728007284952,0.163024,61341.0,61335.0,0.163036]
[1728007285169,0.163024,61341.0,61334.0,0.32608]
[1728007285170,0.163025,61341.0,61334.0,0.32608]
[1728007285403,0.163025,61341.0,61340.0,0.027]
[1728007285659,0.18857836,61343.0,61340.0,0.027]
[1728007285880,0.16302,61342.0,61340.0,0.027]
[1728007286093,0.163023,61341.0,61340.0,0.027]
[1728007286534,0.163023,61341.0,61340.0,0.013]
[1728007286979,0.32604,61342.0,61338.0,0.014]
[1728007287183,0.326057,61339.0,61336.0,0.00013]
[1728007287397,0.326057,61339.0,61333.0,0.163043]
[1728007287398,0.163031,61338.0,61335.0,0.014]
[1728007287619,0.163031,61338.0,61336.0,0.00013]
[1728007288339,0.40434,61346.0,61336.0,0.00013]
[1728007288573,0.40434,61346.0,61337.0,0.19028116]
[1728007288574,0.24468224,61345.0,61337.0,0.19028116]
[1728007288809,0.163016,61344.0,61339.0,0.163026]
[1728007289274,0.000819,61346.0,61338.0,0.326059]
[1728007289769,0.000819,61346.0,61340.0,0.326049]
[1728007290216,0.02556038,61345.0,61342.0,0.163019]
[1728007290475,0.02556038,61345.0,61344.0,0.163015]
[1728007290962,0.000819,61346.0,61344.0,0.163015]
[1728007290963,0.000819,61346.0,61345.0,0.163142]
[1728007291198,0.000819,61346.0,61345.0,0.35668305]
[1728007291427,0.000819,61346.0,61345.0,0.35342316]
[1728007293731,0.000819,61346.0,61345.0,0.35842316]
[1728007294176,0.000819,61346.0,61345.0,0.36442316]
[1728007294390,0.000819,61346.0,61345.0,0.35342316]
[1728007294605,0.000819,61346.0,61345.0,0.36642316]
[1728007294836,0.000819,61346.0,61345.0,0.38042316]
[1728007295069,0.000819,61346.0,61345.0,0.36742316]
[1728007295298,0.000819,61346.0,61345.0,0.177142]
[1728007295535,0.163828,61346.0,61345.0,0.023]
[1728007295973,0.000819,61346.0,61345.0,0.009]
[1728007296418,0.000819,61346.0,61345.0,0.019]
[1728007296646,0.000819,61346.0,61345.0,0.009]
[1728007296874,0.000819,61346.0,61345.0,0.014]
[1728007297345,0.000819,61346.0,61345.0,0.013]
[1728007297566,0.000819,61346.0,61345.0,0.47121198]
[1728007297784,0.000819,61346.0,61345.0,0.52551198]
[1728007298201,0.000819,61346.0,61345.0,0.53451198]
[1728007299142,0.000819,61346.0,61345.0,0.52551198]
[1728007299600,0.000819,61346.0,61345.0,0.53551198]
[1728007299844,0.000819,61346.0,61345.0,0.52564198]
[1728007300290,0.000819,61346.0,61345.0,0.53564198]
[1728007300743,0.000819,61346.0,61345.0,0.55764198]
[1728007301191,0.000819,61346.0,61345.0,0.54864198]
[1728007301393,0.000819,61346.0,61345.0,0.55964198]
[1728007304599,0.000819,61346.0,61345.0,0.54864198]
[1728007305085,0.000819,61346.0,61345.0,0.53864198]
[1728007305335,0.000819,61346.0,61345.0,0.80182869]
[1728007305553,0.000819,61346.0,61345.0,0.80682869]
[1728007306461,0.000819,61346.0,61345.0,0.91422869]
[1728007306898,0.000819,61346.0,61345.0,0.90122869]
[1728007307557,0.000819,61346.0,61345.0,0.91522869]
[1728007308406,0.000819,61346.0,61345.0,0.90122869]
[1728007308722,0.000819,61346.0,61345.0,0.91522869]
[1728007309161,0.24468224,61360.0,61345.0,0.91522869]
[1728007309375,0.24468224,61360.0,61359.0,0.44817498]
[1728007309808,0.000819,61367.0,61365.0,0.162959]
[1728007310032,0.000819,61367.0,61365.0,0.44815898]
[1728007310931,0.000819,61367.0,61365.0,0.45315898]
[1728007311152,0.000819,61367.0,61365.0,0.45915898]
[1728007311396,0.000819,61367.0,61365.0,0.45415898]
[1728007311610,0.000819,61367.0,61365.0,0.44815898]
[1728007311850,0.000819,61367.0,61365.0,0.45915898]
[1728007312283,0.000819,61367.0,61365.0,0.45928898]
[1728007312942,0.000819,61367.0,61365.0,0.46128898]
[1728007313409,0.000819,61367.0,61365.0,0.45928898]
[1728007314150,0.000819,61367.0,61365.0,0.47228898]
[1728007314354,0.000819,61367.0,61365.0,0.187089]
[1728007314355,0.092219,61367.0,61365.0,0.187089]
[1728007315245,0.02636789,61366.0,61365.0,0.187089]
[1728007315904,0.02636789,61366.0,61365.0,0.174089]
[1728007316427,0.02636789,61366.0,61365.0,0.187089]
[1728007316652,0.02636789,61366.0,61365.0,0.174089]
[1728007316890,0.02636789,61366.0,61365.0,0.163089]
[1728007317121,0.02636789,61366.0,61365.0,0.176089]
[1728007317346,0.02636789,61366.0,61365.0,0.187089]
[1728007317836,0.02636789,61366.0,61365.0,0.36611203]
[1728007318070,0.000819,61366.0,61365.0,0.36611203]
[1728007318304,0.000819,61366.0,61365.0,0.37711203]
[1728007319879,0.000819,61366.0,61365.0,0.35311203]
[1728007320134,0.000819,61366.0,61365.0,0.36711203]
[1728007320792,0.000819,61366.0,61365.0,0.36611203]
[1728007321016,0.000819,61366.0,61365.0,0.37711203]
[1728007321247,0.000819,61366.0,61365.0,0.38266203]
[1728007321496,0.000819,61366.0,61365.0,0.37166203]
[1728007321746,0.000819,61366.0,61365.0,0.72854874]
[1728007322882,0.000819,61366.0,61365.0,0.71554874]
[1728007323110,0.000819,61366.0,61365.0,0.71754874]
[1728007323324,0.000819,61366.0,61365.0,0.71654874]
[1728007323762,0.000819,61366.0,61365.0,0.70454874]
[1728007323986,0.000819,61366.0,61365.0,0.70867888]
[1728007324232,0.000819,61366.0,61365.0,0.73567888]
[1728007325298,0.000819,61366.0,61365.0,0.72167888]
[1728007325745,0.000819,61366.0,61365.0,0.73567888]
[1728007326401,0.000819,61366.0,61365.0,0.72267888]
[1728007326664,0.000819,61366.0,61365.0,0.70867888]
[1728007326885,0.000819,61367.0,61366.0,0.270086]
[1728007327096,0.000819,61367.0,61366.0,0.43327271]
[1728007327737,0.000819,61367.0,61366.0,0.43127271]
[1728007328406,0.000819,61367.0,61366.0,0.263086]
[1728007329059,0.000819,61367.0,61366.0,0.27134453]
[1728007329536,0.000819,61367.0,61366.0,0.29934453]
[1728007329970,0.000819,61367.0,61366.0,0.28534453]
[1728007330185,0.000819,61367.0,61366.0,0.29934453]
[1728007330402,0.000819,61367.0,61366.0,0.282086]
[1728007330900,0.000819,61367.0,61366.0,0.28534435]
[1728007331354,0.000819,61367.0,61366.0,0.27134435]
[1728007332180,0.000819,61367.0,61366.0,0.28534435]
[1728007332927,0.000819,61367.0,61366.0,0.29934435]
[1728007333124,0.000819,61367.0,61366.0,0.27134435]
[1728007333556,0.000819,61367.0,61366.0,0.29934435]
[1728007334005,0.000819,61367.0,61366.0,0.44853106]
[1728007334230,0.000819,61367.0,61366.0,0.63957271]
[1728007335348,0.000819,61367.0,61366.0,0.62557271]
[1728007335562,0.001099,61374.0,61373.0,0.163068]
[1728007335563,0.24468224,61374.0,61373.0,0.163068]
[1728007335993,0.24389877,61383.0,61382.0,0.163044]
[1728007336210,0.24389877,61383.0,61382.0,0.35306703]
[1728007336688,0.325794,61389.0,61382.0,0.35306703]
[1728007336689,0.238302,61387.0,61382.0,0.35306703]
[1728007336909,0.0754,61387.0,61383.0,0.162911]
[1728007337149,0.10094301,61387.0,61383.0,0.162911]
[1728007337824,0.10094301,61387.0,61383.0,0.163041]
[1728007338264,0.10094301,61387.0,61383.0,0.167041]
[1728007338513,0.10094301,61387.0,61386.0,0.163033]
[1728007338514,0.02564301,61387.0,61386.0,0.163033]
[1728007338749,0.02564301,61387.0,61386.0,0.35305603]
[1728007338968,0.0001,61387.0,61386.0,0.35305603]
[1728007339735,0.0001,61387.0,61386.0,0.35405603]
[1728007339934,0.0001,61387.0,61386.0,0.36505603]
[1728007340185,0.0001,61387.0,61386.0,0.52724274]
[1728007340386,0.0001,61387.0,61386.0,0.51624274]
[1728007340602,0.0001,61387.0,61386.0,0.54424274]
[1728007341273,0.24468224,61397.0,61392.0,0.162887]
[1728007341274,0.01662274,61393.0,61392.0,0.162887]
[1728007341503,0.01162274,61393.0,61392.0,0.35304003]
[1728007341957,0.01162274,61393.0,61392.0,0.19015303]
[1728007342159,0.01162274,61393.0,61391.0,0.163018]
[1728007342392,0.03716095,61393.0,61391.0,0.00013]
[1728007342630,0.03716095,61393.0,61392.0,0.01]
[1728007343074,0.03716095,61393.0,61392.0,0.01013]
[1728007343296,0.03716095,61393.0,61392.0,0.01913]
[1728007343528,0.03716095,61393.0,61392.0,0.019]
[1728007343771,0.37504595,61393.0,61392.0,0.019]
[1728007343989,0.34950774,61393.0,61392.0,0.019]
[1728007345141,0.34950774,61393.0,61392.0,0.009]
[1728007345379,0.34950774,61393.0,61392.0,0.01]
[1728007345795,0.34950774,61393.0,61392.0,0.009]
[1728007346079,0.34950774,61393.0,61392.0,0.19902303]
[1728007346080,0.18662274,61393.0,61392.0,0.19902303]
[1728007346340,0.34950774,61393.0,61392.0,0.009]
[1728007346568,0.34950774,61393.0,61387.0,0.00013]
[1728007346569,0.162893,61390.0,61387.0,0.00013]
[1728007346799,0.18662274,61393.0,61387.0,0.00013]
[1728007346800,0.37604869,61393.0,61389.0,0.24468224]
[1728007347000,0.37586669,61393.0,61388.0,0.162897]
[1728007347281,0.37586669,61393.0,61388.0,0.35292003]
[1728007347744,0.37686669,61393.0,61388.0,0.35292003]
[1728007348186,0.37686669,61393.0,61388.0,0.19002303]
[1728007348187,0.21298169,61393.0,61388.0,0.19002303]
[1728007348417,0.21398169,61393.0,61389.0,0.162894]
[1728007348876,0.21498169,61393.0,61389.0,0.162894]
[1728007349097,0.21398169,61393.0,61390.0,0.162892]
[1728007349312,0.21398169,61393.0,61389.0,0.162894]
[1728007349560,0.21298169,61393.0,61389.0,0.162894]
[1728007349776,0.21298169,61393.0,61390.0,0.162892]
[1728007350261,0.18744074,61393.0,61390.0,0.162892]
[1728007350474,0.18744074,61393.0,61392.0,0.19002303]
[1728007351537,0.35032574,61393.0,61392.0,0.19002303]
[1728007351742,0.35032574,61393.0,61392.0,0.19015303]
[1728007351956,0.35032574,61393.0,61392.0,0.00013]
[1728007352180,0.11024074,61393.0,61392.0,0.19015303]
[1728007352456,0.11024074,61393.0,61392.0,0.35304003]
[1728007352457,0.01244074,61393.0,61392.0,0.35304003]
[1728007352667,0.01244074,61393.0,61392.0,0.163017]
[1728007352925,0.01244074,61393.0,61392.0,0.35304003]
[1728007353164,0.01244074,61393.0,61392.0,0.36004003]
[1728007353672,0.01244074,61393.0,61392.0,0.36604003]
[1728007353878,0.01244074,61393.0,61392.0,0.35904003]
[1728007354085,0.01244074,61393.0,61392.0,0.36104003]
[1728007354602,0.01244074,61393.0,61392.0,0.36004003]
[1728007355880,0.01244074,61393.0,61392.0,0.35304003]
[1728007356133,0.01244074,61393.0,61392.0,0.36004003]
[1728007356556,0.01244074,61393.0,61392.0,0.35304003]
[1728007356997,0.01244074,61393.0,61392.0,0.36904003]
[1728007357234,0.01244074,61393.0,61392.0,0.36104003]
[1728007357660,0.01244074,61393.0,61392.0,0.37004003]
[1728007361242,0.01244074,61393.0,61392.0,0.53322674]
[1728007362138,0.01244074,61393.0,61392.0,0.52522674]
[1728007362378,0.01244074,61393.0,61392.0,0.37504003]
[1728007363074,0.01244074,61393.0,61392.0,0.36604003]
[1728007363300,0.01244074,61393.0,61392.0,0.38004003]
[1728007368649,0.01229784,61393.0,61392.0,0.38004003]
[1728007381804,0.01229784,61393.0,61392.0,0.027]
[1728007382078,0.17518284,61393.0,61392.0,0.027]
[1728007382964,0.17518284,61393.0,61392.0,0.014]
[1728007383147,0.25508284,61393.0,61392.0,0.014]
[1728007383612,0.16289,61391.0,61390.0,0.001636]
[1728007385176,0.33579,61391.0,61390.0,0.009636]
[1728007385627,0.33579,61391.0,61390.0,0.016636]
[1728007386080,0.52581303,61391.0,61390.0,0.016636]
[1728007386313,0.52581303,61391.0,61390.0,0.009636]
[1728007386780,0.52581303,61391.0,61390.0,0.011636]
[1728007387002,0.162914,61382.0,61381.0,0.24468224]
[1728007387214,0.335814,61382.0,61381.0,0.24468224]
[1728007387444,0.335814,61382.0,61374.0,0.00013]
[1728007387445,0.162928,61377.0,61374.0,0.00013]
[1728007387676,0.162928,61377.0,61366.0,0.19165903]
[1728007387677,0.162927,61377.0,61376.0,0.24468224]
[1728007387919,0.162927,61377.0,61371.0,0.00013]
[1728007388186,0.162925,61378.0,61370.0,0.162944]
[1728007388409,0.02554763,61376.0,61371.0,0.00013]
[1728007388661,0.02554763,61376.0,61374.0,0.007]
[1728007388922,0.02554763,61376.0,61371.0,0.163071]
[1728007388923,0.255629,61377.0,61371.0,0.00013]
[1728007389206,0.0927,61377.0,61371.0,0.168942]
[1728007389425,0.0927,61377.0,61371.0,0.175942]
[1728007389426,0.255628,61377.0,61371.0,0.175942]
[1728007389663,0.255628,61377.0,61370.0,0.00013]
[1728007389897,0.255628,61377.0,61374.0,0.007]
[1728007390713,0.254908,61377.0,61374.0,0.007]
[1728007391185,0.254908,61377.0,61372.0,0.162939]
[1728007391432,0.0802,61382.0,61377.0,0.00013]
[1728007391665,0.000819,61396.0,61383.0,0.00013]
[1728007391666,0.0802,61387.0,61383.0,0.00013]
[1728007391901,0.243102,61387.0,61383.0,0.00013]
[1728007392395,0.162904,61386.0,61379.0,0.325842]
[1728007392630,0.162904,61386.0,61381.0,0.162916]
[1728007393123,0.162904,61386.0,61383.0,0.001]
[1728007393575,0.162904,61386.0,61381.0,0.162916]
[1728007393831,0.0927,61385.0,61381.0,0.162916]
[1728007394066,0.0927,61385.0,61359.0,0.002]
[1728007394067,0.0927,61382.0,61369.0,0.24468224]
[1728007394295,0.162946,61370.0,61369.0,0.24468224]
[1728007394534,0.335846,61370.0,61369.0,0.24468224]
[1728007394997,0.325902,61368.0,61361.0,0.24481224]
[1728007395210,0.325902,61368.0,61361.0,0.40778124]
[1728007395211,0.162954,61367.0,61361.0,0.40778124]
[1728007395423,0.162954,61367.0,61361.0,0.40777924]
[1728007395874,0.1885051,61367.0,61361.0,0.40777924]
[1728007396109,0.0255511,61367.0,61363.0,0.325928]
[1728007396337,0.0255511,61367.0,61366.0,0.35861503]
[1728007396782,0.0255511,61367.0,61366.0,0.36361503]
[1728007397044,0.0927,61376.0,61366.0,0.010636]
[1728007397264,0.162954,61367.0,61366.0,0.010636]
[1728007397486,0.0927,61367.0,61366.0,0.010636]
[1728007398209,0.0802,61372.0,61366.0,0.001636]
[1728007398210,0.162949,61369.0,61366.0,0.001636]
[1728007398677,0.0802,61372.0,61366.0,0.001636]
[1728007398678,0.162953,61368.0,61366.0,0.001636]
[1728007399131,0.162953,61368.0,61366.0,0.003636]
[1728007399379,0.162953,61368.0,61366.0,0.002636]
[1728007399587,0.32589,61371.0,61366.0,0.002636]